Cogmind - Beta 13 @@@ ROGUE MODE // 2024.04.02 @ 17:22:19 Player: blelm Result: Destroyed by XR-JVC(R) with Subdweller Laser Performance ------------- Evolutions (0) 0 Regions Visited (2) 400 Robots Destroyed (42) 210 Value Destroyed (676) 676 Prototype IDs (0) 0 Alien Tech Used (0) 0 Bonus (0) 0 TOTAL SCORE: 1286 Bonus ------- None Cogmind --------- Core Integrity 0/250 Matter 261/300 Energy 204/250 System Corruption 0% Temperature Cool (6) Movement Treading (320) Ox2 Location -10/Subcaves Parts ------- > --- POWER (1) -------- Ion Engine > --- PROPULSION (2) --- Light Treads Subdweller Monowheel > --- UTILITY (2) ------ High-capacity Storage Unit Structural Scanner > --- WEAPON (2) ------- Assault Rifle Heavy Battle Rifle > --- INVENTORY (20) --- Compact Wheel High-capacity Storage Unit High-capacity Battery (250) High-capacity Matter Pod (0) Seismic Detector Core Shielding Light Armor Plating Medium Laser Beam Cannon Beam Cannon Light Assault Rifle Light Assault Rifle Light Assault Rifle Subdweller Shrapnel Launcher Subdweller Shrapnel Launcher Mining Laser Multitool Peak State ------------ > --- POWER ------------ Subdweller Power Source > --- PROPULSION ------- Light Treads Subdweller Monowheel > --- UTILITY ---------- High-capacity Storage Unit Core Shielding > --- WEAPON ----------- Barrage Gun Heavy Battle Rifle > --- INVENTORY -------- Ion Engine Light Treads Compact Wheel Subdweller Monowheel High-capacity Battery High-capacity Matter Pod Structural Scanner Seismic Detector Light Armor Plating Medium Laser Beam Cannon Beam Cannon Assault Rifle Light Assault Rifle Light Assault Rifle Light Assault Rifle Subdweller Shrapnel Launcher Subdweller Shrapnel Launcher Mining Laser [Rating: 16] Favorites ----------- Power Ion Engine Engine Ion Engine Propulsion Light Treads Treads Light Treads Leg Aluminum Leg Wheel Compact Wheel Utility High-capacity Storage Unit Device Seismic Detector Storage High-capacity Storage Unit Protection Core Shielding Weapon Barrage Gun Energy Gun Medium Laser Energy Cannon Beam Cannon Ballistic Gun Barrage Gun Launcher Subdweller Shrapnel Launcher Special Weapon Mining Laser Build | -11 -10 -10 ------- Run | Yrd Mat Sub Slots Evolved . | . . . Power . | . . . Propulsion . | . . . Utility . | . . . Weapon . | . . . Parts Attached 59 | 5 23 31 Power 4 | . 2 2 Engine 4 | . 2 2 Core . | . . . Reactor . | . . . Propulsion 11 | 2 4 5 Treads 5 | 1 1 3 Leg . | . . . Wheel 6 | 1 3 2 Hover . | . . . Flight . | . . . Utility 12 | 2 6 4 Device 6 | 2 2 2 Storage 4 | . 2 2 Processor . | . . . Hackware . | . . . Protection 2 | . 2 . Artifact . | . . . Weapon 32 | 1 11 20 Energy Gun . | . . . Energy Cannon 1 | . . 1 Ballistic Gun 17 | 1 6 10 Ballistic Cannon . | . . . Launcher 2 | . . 2 Special Weapon 12 | . 5 7 Impact Weapon . | . . . Slashing Weapon . | . . . Piercing Weapon . | . . . Special Melee Weapon . | . . . Unidentified Prototypes . | . . . Parts Lost 3 | . . 3 Power . | . . . Propulsion 2 | . . 2 Utility . | . . . Weapon 1 | . . 1 Highest Loss Streak 1 | . . 1 To Critical Strikes 1 | . . 1 Average Slot Usage (%) 99 | . 100 99 Engine 14 | . 14 14 Treads 13 | . 12 13 Wheel 14 | . 15 14 Device 3 | . 7 . Storage 14 | . 14 14 Protection 10 | . 6 13 Ballistic Gun 25 | . 25 25 Special Weapon 2 | . 2 1 Naked Turns . | . . . Heaviest Build 57 | 13 49 57 Greatest Support 32 | 20 32 32 Greatest Overweight (x) 3 | . 3 3 Average Overweight (x) 1 | . 1 2 Largest Inventory Capacity 20 | 8 20 20 Average Capacity 18 | 8 16 20 Most Carried 20 | 7 17 20 Average Carried 15 | 6 10 19 Final Capacity 20 | 8 20 20 Final Carried 17 | 6 17 17 Class Distribution -------------------- 97% | Mutant Dominant Class ---------------- Mutant | -10/Materials Mutant | -10/Subcaves Resources | -11 -10 -10 ----------- Run | Yrd Mat Sub Matter Collected 1659 | 273 841 545 Remotely . | . . . Salvage Created 1100 | 164 615 321 Parts 107 | 14 63 30 Haulers Intercepted 1 | . 1 . Recyclers Shooed . | . . . Parts Field Recycled . | . . . Retrieved Matter . | . . . Parts Self-Destructed 8 | . . 8 Prevented . | . . . Kills | -11 -10 -10 ------- Run | Yrd Mat Sub Combat Hostiles Destroyed 29 | . 19 10 Guns 26 | . 19 7 AOE 3 | . . 3 Classes Destroyed 12 | 2 7 3 Worker 2 | . 2 . Builder 2 | . 2 . Tunneler 4 | 4 . . Hauler 1 | . 1 . Recycler 2 | 1 1 . Operator 1 | . 1 . Watcher 1 | . 1 . Swarmer 18 | . 14 4 Grunt 5 | . 5 . Artisan 2 | . . 2 Cobbler 1 | . . 1 Subdweller 6 | . . 6 Best Kill Streak 4 | 3 4 4 Combat Bots Only 4 | . 4 4 Max Kills in Single Turn 3 | 1 2 3 Gunslinging 1 | . 1 . Exploded 3 | . . 3 Melee . | . . . Uniques/NPCs Destroyed . | . . . Combat | -11 -10 -10 -------- Run | Yrd Mat Sub Hostile Shots Fired 111 | . 62 49 Missed 32 | . 19 13 Damage Taken 1250 | . 409 841 Core 257 | . 34 223 Absorbed by Shields . | . . . Redirected to Shielding 39 | . 5 34 Core Remaining (%) 100 | 100 . . Volleys Fired 165 | 11 78 76 Largest 2 | 2 2 2 Hottest 100 | 70 100 100 Shots Fired 271 | 22 144 105 Gun 212 | 22 132 58 Cannon . | . . . Launcher 4 | . . 4 Special 55 | . 12 43 Kinetic 205 | 11 132 62 Thermal 66 | 11 12 43 Explosive . | . . . Electromagnetic . | . . . Robot Hit Streak 24 | 5 24 11 Robot Miss Streak 5 | 2 3 5 Penetration Max . | . . . Secondary Targets 1 | . 1 . Max Gunslinging Chain 1 | . 1 . Shots Hit Robots 134 | 11 86 37 Core Hits 72 | 6 44 22 Critical Kills 1 | . 1 . Critical Parts Destroyed . | . . . Critical Strikes 2 | 1 1 . Burn 1 | 1 . . Destroy 1 | . 1 . Melee Attacks . | . . . Impact . | . . . Slashing . | . . . Piercing . | . . . Sneak Attacks . | . . . Combat Hostiles . | . . . Follow-up Attacks . | . . . Damage Inflicted 2058 | 142 948 968 Guns 1782 | 142 892 748 Cannons . | . . . Explosions 220 | . . 220 Melee . | . . . Ramming 8 | . 8 . Kinetic 1927 | 67 892 968 Thermal 123 | 75 48 . Explosive . | . . . Electromagnetic . | . . . Impact . | . . . Slashing . | . . . Piercing . | . . . Highest Corruption . | . . . Average Corruption . | . . . Corruption Purged . | . . . Corruption Blocked . | . . . Overload Shots . | . . . Overflow Damage . | . . . Projectiles . | . . . Explosions . | . . . Melee . | . . . Knockbacks . | . . . Impact . | . . . Kinetic . | . . . Secondary . | . . . Self-Inflicted Damage 21 | . 4 17 Shots 1 | . . 1 Rammed 1 | . 1 . Targets Rammed 1 | . 1 . Kicked . | . . . Crushed . | . . . Highest Temperature 63 | 63 60 5 Average Temperature 18 | 27 15 5 Received Heat Transfer 264 | . 114 150 Siege Activations . | . . . Robots Corrupted . | . . . Combat Hostiles . | . . . Parts Fried . | . . . Impact Corruptions . | . . . Robots Melted . | . . . Combat Hostiles . | . . . Parts Melted . | . . . Heat Transferred 396 | 296 100 . Parts Sabotaged . | . . . Parts Stolen . | . . . Parts Stripped . | . . . Power Chain Reactions . | . . . Alert | -11 -10 -10 ------- Run | Yrd Mat Sub Peak Influence 317 | 25 317 . Initial 16 | . 16 . Average 104 | 16 110 . Maximum Alert Level 1 | . 1 . Low Security (%) 88 | 100 88 . Level 1 11 | . 11 . Level 2 . | . . . Level 3 . | . . . Level 4 . | . . . Level 5 . | . . . High Security . | . . . Max Security . | . . . Squads Dispatched 4 | . 4 . Investigation 3 | . 3 . Extermination . | . . . Reinforcement 1 | . 1 . Assault . | . . . Garrison . | . . . Intercept . | . . . Searches Triggered . | . . . Construction Impeded . | . . . Haulers Reinforced . | . . . Active Scanning Responses . | . . . Cargo Convoy Interrupts . | . . . Stealth | -11 -10 -10 --------- Run | Yrd Mat Sub Distress Signals 2 | . 2 . Communications Jammed . | . . . Distress Signals . | . . . Times Spotted 50 | . 33 17 Peak Tracking Total 6 | . 5 6 Tactical Retreats 2 | . 1 1 Traps | -11 -10 -10 ------- Run | Yrd Mat Sub Traps Triggered 2 | . 1 1 Indirectly . | . . . Trap Hack Attempts . | . . . Triggered . | . . . Disarmed . | . . . Reprogrammed . | . . . Reused . | . . . Traps Extracted . | . . . Installed . | . . . Triggered . | . . . Machines | -11 -10 -10 ---------- Run | Yrd Mat Sub Machines Disabled 1 | . . 1 Max in Single Turn 1 | . . 1 Machines Repaired . | . . . Machines Dismantled . | . . . Machines Sabotaged . | . . . Overloaded Fab Kills . | . . . Hacking | -11 -10 -10 --------- Run | Yrd Mat Sub Machines Accessed 6 | . 6 . Terminals 4 | . 4 . Fabricators . | . . . Repair Stations . | . . . Recycling Units 2 | . 2 . Scanalyzers . | . . . Garrison Access . | . . . Total Hacks 16 | . 16 . Successful 11 | . 11 . Failed 5 | . 5 . Catastrophic . | . . . Database Lockouts . | . . . Manual 9 | . 9 . Terminals 14 | . 14 . Fabricators . | . . . Repair Stations . | . . . Recycling Units 2 | . 2 . Scanalyzers . | . . . Garrison Access . | . . . Terminal Hacks 8 | . 8 . Part Schematic 2 | . 2 . Robot Analysis 1 | . 1 . Locate Traps 2 | . 2 . Hauler Manifests 1 | . 1 . Zone Layout 2 | . 2 . Fabricator Hacks . | . . . Repair Station Hacks . | . . . Recycling Unit Hacks . | . . . Scanalyzer . | . . . Garrison Access Hacks . | . . . Unauthorized Hacks 3 | . 3 . Terminals 1 | . 1 . Operators 1 | . 1 . Fabricators . | . . . Repair Stations . | . . . Recycling Units 2 | . 2 . Tunnel 2 | . 2 . Scanalyzers . | . . . Garrison Access . | . . . Data Cores Recovered . | . . . Used . | . . . Hacking Detections 3 | . 3 . Full Trace Events . | . . . Feedback Events . | . . . Feedback Blocked . | . . . Robot Schematics Acquired . | . . . Robots Built . | . . . Authchips . | . . . Time . | . . . Total Robot Build Rating . | . . . Part Schematics Acquired 2 | . 2 . Parts Built . | . . . Authchips . | . . . Time . | . . . Total Part Build Rating . | . . . Parts Repaired . | . . . Time . | . . . Parts Recycled . | . . . Recycled Matter . | . . . Retrieved Matter . | . . . Retrieved Components . | . . . Parts Scanalyzed . | . . . Part Schematics Acquired . | . . . Parts Damaged . | . . . Bothacking | -11 -10 -10 ------------ Run | Yrd Mat Sub Used RIF Installer . | . . . Robots Hacked . | . . . Non-combat . | . . . Combat . | . . . Robot Hacks Applied . | . . . Relay Couplers Released . | . . . Fabnet Peak Effective % . | . . . Robots Rewired . | . . . Allies Hacked . | . . . Hacks Repelled . | . . . Allies | -11 -10 -10 -------- Run | Yrd Mat Sub Total Allies . | . . . Largest Group . | . . . Highest-Rated Group . | . . . Highest-Rated Ally . | . . . Total Orders . | . . . Ally Attacks . | . . . Total Damage . | . . . Kills . | . . . Allies Corrupted . | . . . Allies Melted . | . . . Intel | -11 -10 -10 ------- Run | Yrd Mat Sub Robot Analysis Total 1 | . 1 . Derelict Logs Recovered 1 | . . 1 Drone Launches . | . . . Drone Recoveries . | . . . Exploration | -11 -10 -10 ------------- Run | Yrd Mat Sub Turns Passed 4712 | 122 1812 2778 Spaces Moved 2405 | 56 1006 1343 Core . | . . . Treads . | . . . Legs 40 | 40 . . Wheels 2365 | 16 1006 1343 Hover . | . . . Flight . | . . . Fastest Speed 100 | 100 100 115 Average Speed 128 | 114 122 133 Slowest Speed 145 | 120 145 145 Overloaded Moves . | . . . Propulsion Burnouts . | . . . Robots Hopped . | . . . Cave-ins Triggered . | . . . Exploration Rate (%) 51 | 3 99 53 Regions Visited 2 Branch Regions 1 Pre-discovered Areas 3 | . 2 1 Known Exits Taken . | . . . Unknown Exits Taken 2 | 1 1 . Scrap Searched 3 | . . 3 Spaces Dug 55 | . 7 48 Terrain Destroyed 90 | . 9 81 Melee . | . . . Projectile 27 | . 9 18 AOE 63 | . . 63 Terrain Rammed . | . . . Walls Destroyed . | . . . Machines Disabled . | . . . Actions | -11 -10 -10 --------- Run | Yrd Mat Sub Total 3641 | 91 1422 2128 Wait 966 | 16 291 659 Move 2403 | 55 1005 1343 Hop . | . . . Pick Up 25 | 1 14 10 Fast Attach 3 | 3 . . Attach 9 | 1 . 8 Detach . | . . . Swap 47 | 1 23 23 Drop 22 | 3 10 9 Fire 165 | 11 78 76 Melee . | . . . Ram 1 | . 1 . Kick . | . . . Crush . | . . . Escape Stasis . | . . . Rewire . | . . . Trap . | . . . Miscellaneous . | . . . Route ------- -11/Scrapyard -10/Materials (discovered 5 exits: [*Mat x3] / [*Min] / [*Sub]) -10/Subcaves (discovered 3 exits: [*Mat x2] / [*Rec]) History --------- Turn | Location | Event 14 | -11/Scrapyard | Discovered new exit (range 3) 123 | -11/Scrapyard | Entered Materials 300 | -10/Materials | Build established: Mutant 331 | -10/Materials | Discovered new exit (range 7) 585 | -10/Materials | Discovered new exit (range 7) 600 | -10/Materials | Derelicts attacked the area 619 | -10/Materials | Discovered new exit (range 13) 1501 | -10/Materials | Discovered new exit (range 13) 1926 | -10/Materials | Discovered new exit (range 7) 1935 | -10/Materials | Entered Subcaves 1944 | -10/Subcaves | Learned location of Zion (-6) 1976 | -10/Subcaves | Shifting Twisted Machinery released Hvy. Battle Rifle 1992 | -10/Subcaves | Shifting Twisted Machinery released Battle Rifle 1994 | -10/Subcaves | Shifting Twisted Machinery released Sub. Laser 1995 | -10/Subcaves | Shifting Twisted Machinery released Sub. Shrapnel Launcher 2012 | -10/Subcaves | Discovered new exit (range 9) 2767 | -10/Subcaves | Discovered new exit (range 13) 2852 | -10/Subcaves | Core integrity fell below 50% 3035 | -10/Subcaves | Ambushed by angry Subdweller bent on revenge 3878 | -10/Subcaves | Discovered new exit (range 14) 3880 | -10/Subcaves | Ambushed by Subdweller buried in earth 4586 | -10/Subcaves | Ambushed by Subdweller buried in earth 4709 | -10/Subcaves | Ambushed by Subdweller buried in earth 4711 | -10/Subcaves | Core integrity fell below 20% 4713 | -10/Subcaves | Destroyed by XR-JVC(R) with Subdweller Laser Last Messages --------------- 04025_ Critical hit (Impale). 04034_ Sub. Power Source shoots sparks and powers down. 04034_ Dropped Broken Sub. Power Source. 04082_ Subatomizers dissect the Broken Sub. Power Source. 04268_ Acquired 6 matter. 04521_ Sub. Monowheel shoots sparks and powers down. 04522_ Dropped Broken Sub. Monowheel. 04556_ Acquired 11 matter. 04587_ QF-1GD(R): "ARGHSUB!" 04594_ Critical hit (Destroy). 04594_ Barrage Gun destroyed. 04595_ QF-1GD(R) destroyed. 04598_ Acquired 45 matter. 04605_ Acquired Structural Scanner. 04610_ Dropped Structural Scanner. 04659_ Subatomizers dissect the Sub. Monowheel. 04680_ Dropped Hcp. Matter Pod. 04681_ Extracted 200 matter. 04682_ Acquired Hcp. Matter Pod. 04710_ XR-JVC(R): "ARGHSUB!" Map ----- +----------------------------------------------------+ | ????????????????????????????????????????###### | | ?????????????????????????????????????????????# | | ????????????????????????????????????????????## | | ??????????????????????????????????????????### | | ?????????????????????????????????????????## | | ?????????????????????????????????????????# ## | | ?????????????????????????????????????????# ##?## | | ?????????????????????????????????????????# ##??# | | ?????????????????????????????????????????## ##?# | | ???????????????????????????????????????#### ### | | ???????????????????????????????????????# ## ## # | | ???????????????????????????????????????# | | ???????????????????????????????????????# | | ???????????????????????????????????????# ##### | | ???????????????????????????????????????# ##???### | | ???????????????????????????????????????# #?????# | | ???????????????????????????????????????# = #?????# | | ??????????????????????????????????????## ##?????# | | ??????????????????????????????????????# #?????? | | ??????????????????????????????????????## ##?????? | | ??????????????????????????????????????# ##?????? | | ??????????????????????????????????????# #?????? | | ???????????????????????######?????????## ##?????? | | ?????????????????????###########???????# ######?? | | ?????????????????????####R #### #####??# [# ####?? | | ?????????????????????## @### ##########"" ##?? | | ?????????????????????##### # #### "" ##?? | | ?????????????????????##### # ! ! !&* ###?? | | ???????????????????????## ## = ##& ##??? | | ???????????????????????## #### ###??? | | ???????????????????????#### ###### #####??? | | ???????????????????????####### #####?# ######???? | | ????????????????????????? #########???######?????? | | ????????????????????????????######?????????????### | | ??????????????????????????????????????????????## | | ??????????????????????????????????????????##### | | ?????????????????????????????????????????## ## | | ??????????????????????????????????????#### # | | ?????????????????????????????????????## # # ## | | ?????????????????????????????????????# ## | | ?????????????????????????????????????## | | ??????????????????????????????????????# ### | | ??????????????????????????????????????###?## # | | ???????????????????????????????????????????# ## | | ???????????????????????????????????????????# #? | | ???????????????????????????????????????????# #? | | ???????????????????????????????????????????## ##? | | ????????????????????????????????????????????####?? | | ?????????????????????????????????????????????????? | | ?????????????????????????????????????????????????? | +----------------------------------------------------+ Best States ------------- Heat Dissipation 25 Energy Generation 15 Energy Capacity 250 Matter Stores 300 Matter Capacity 300 Sight Range 16 Terrain Scan Range 16 Terrain Scan Density 10 Armor Coverage 150 Core Shielding 20 Evasion (%) 55 Recoil Reduction 1 Item Schematics ----------------- Hcp. Storage Unit | -10/Materials | Hacked Huge Storage Unit | -10/Materials | Hacked Robot Schematics ------------------ None Fabricated ------------ Nothing Alien Tech Used ----------------- None Achievements -------------- None Challenges ------------ None Game ------ Seed BottomlessChipCompactor Manual? 0 Play Time 00:22:36 Cumulative 534.9 hours Start 2024.04.02 @ 16:57:56 End 2024.04.02 @ 17:22:19 Sessions 1 Manual Loads 0 Difficulty Rogue Special Mode None Game No. 294 Rogue 294 Adventurer 0 Explorer 0 Win Type - Total 28 Types 2/5/4/1/1/1/12/1/1 Lore% 88 Gallery% 90 Achievement% 76 Wizard Run 0 Options --------- Layout 0 ASCII 1 Keyboard 1 Movement Vi Keybinds 0 Fullscreen 2 Font 18/Terminus Map View 76x50 Zoom Use 0% Tactical HUD 1 Map Filters NONE Filters NONE Steam 1 RUN: 3da7856a-e978-415d-a577-78138ab6d27c